fUST/lending_fUST_20251231
["ID","MTS","AMOUNT","RATE_DAILY","PERIOD"]
[400137591,1767147038232,-300.0,0.00012706,2]
[400137592,1767147038249,-300.0,0.00012706,2]
[400137593,1767147038263,-300.0,0.00012706,2]
[400137594,1767147038273,-300.0,0.00012706,2]
[400137595,1767147038283,-300.0,0.00012706,2]
[400137596,1767147038293,-300.0,0.00012706,2]
[400137597,1767147038303,-300.0,0.00012706,2]
[400137598,1767147038313,-300.0,0.00012706,2]
[400137599,1767147038326,-300.0,0.00012706,2]
[400137600,1767147038336,-300.0,0.00012706,2]
[400137601,1767147038345,-300.0,0.00012706,2]
[400137602,1767147038355,-300.0,0.00012706,2]
[400137603,1767147038366,-300.0,0.00012706,2]
[400137604,1767147038375,-300.0,0.00012706,2]
[400137605,1767147038385,-600.0,0.00012706,2]
[400137606,1767147038395,-1271.34,0.00012769,2]
[400137607,1767147038406,-11704.54720214,0.000129,2]
[400137608,1767147038415,-10421.89006973,0.000131,2]
[400137609,1767147038425,-500.0,0.00013273,2]
[400137610,1767147038435,-500.0,0.00013273,2]
[400137611,1767147038445,-544.63270575,0.00013273,2]
[400137612,1767147038454,-500.0,0.00013273,2]
[400137613,1767147038464,-501.81918671,0.00013273,2]
[400137614,1767147038473,-500.0,0.00013273,2]
[400137615,1767147038483,-609.08385745,0.00013273,2]
[400137616,1767147038492,-500.0,0.00013273,2]
[400137617,1767147038501,-500.6493699,0.00013273,2]
[400137618,1767147038511,-500.0,0.00013273,2]
[400137619,1767147038520,-500.0,0.00013273,2]
[400137620,1767147038529,-605.4912637,0.00013273,2]
[400137621,1767147038539,-500.0,0.00013273,2]
[400137622,1767147038549,-500.29804929,0.00013273,2]
[400137623,1767147038558,-500.0,0.00013273,2]
[400137624,1767147038568,-500.0,0.00013273,2]
[400137625,1767147038577,-500.40003956,0.00013273,2]
[400137626,1767147038587,-500.0,0.00013273,2]
[400137627,1767147038596,-500.0,0.00013273,2]
[400137628,1767147038606,-500.0,0.00013273,2]
[400137629,1767147038616,-465.49966763,0.00013273,2]
[400137630,1767147038626,-500.0,0.00013273,2]
[400137631,1767147038635,-500.0,0.00013273,2]
[400137632,1767147038645,-500.0,0.00013273,2]
[400137633,1767147038655,-500.0,0.00013273,2]
[400137634,1767147038669,-500.0,0.00013273,2]
[400137635,1767147038679,-500.0,0.00013273,2]
[400137636,1767147038689,-500.0,0.00013273,2]
[400137637,1767147038699,-500.0,0.00013273,2]
[400137638,1767147038708,-500.0,0.00013273,2]
[400137639,1767147038718,-268.54783585,0.00013273,2]
[400137640,1767147038728,-185.33376519,0.00013273,2]
[400137641,1767147038738,-500.0,0.00013273,2]
[400137642,1767147038936,-536.04304109,0.00013273,2]
[400137643,1767147038955,-500.0,0.00013273,2]
[400137644,1767147038965,-171.48972803,0.00013273,2]
[400137645,1767147038975,-500.0,0.00013273,2]
[400137646,1767147038984,-500.0,0.00013273,2]
[400137647,1767147038994,-500.0,0.00013273,2]
[400137648,1767147039004,-500.0,0.00013273,2]
[400137649,1767147039013,-500.0,0.00013273,2]
[400137650,1767147039023,-500.0,0.00013273,2]
[400137651,1767147039032,-500.0,0.00013273,2]
[400137652,1767147039042,-500.0,0.00013273,2]
[400137653,1767147039051,-500.0,0.00013273,2]
[400137654,1767147039061,-500.0,0.00013273,2]
[400137655,1767147039072,-500.0,0.00013273,2]
[400137656,1767147039082,-158.3582055,0.00013273,2]
[400137657,1767147039092,-500.0,0.00013273,2]
[400137658,1767147039102,-500.0,0.00013273,2]
[400137659,1767147039115,-500.0,0.00013273,2]
[400137660,1767147039125,-159.22862386,0.00013273,2]
[400137661,1767147039135,-270.19588206,0.00013273,2]
[400137662,1767147039145,-500.0,0.00013273,2]
[400137663,1767147039155,-500.54574778,0.00013273,2]
[400137664,1767147039165,-500.0,0.00013273,2]
[400137665,1767147039175,-210.55427854,0.00013273,2]
[400137666,1767147039185,-500.0,0.00013273,2]
[400137667,1767147039195,-500.0,0.00013273,2]
[400137668,1767147039204,-500.0,0.00013273,2]
[400137669,1767147039213,-500.0,0.00013273,2]
[400137670,1767147039223,-500.0,0.00013273,2]
[400137671,1767147039233,-500.0,0.00013273,2]
[400137672,1767147039242,-500.0,0.00013273,2]
[400137673,1767147039251,-500.0,0.00013273,2]
[400137674,1767147039261,-500.0,0.00013273,2]
[400137675,1767147039270,-159.94,0.00013273,2]
[400137676,1767147039280,-10000.0,0.0001354,2]
[400137677,1767147039289,-500.0,0.00013547,2]
[400137678,1767147039298,-159.94,0.00013547,2]
[400137679,1767147039307,-420.0,0.0001356,2]
[400137680,1767147039316,-1680.0,0.00013593,2]
[400137681,1767147039329,-1680.0,0.00013665,2]
[400137682,1767147039339,-300.0,0.00013673,2]
[400137683,1767147039348,-4864.7,0.00013697,2]
[400137684,1767147039357,-500.0,0.00013698,2]
[400137685,1767147039368,-500.0,0.00013698,2]
[400137686,1767147039378,-500.0,0.00013698,2]
[400137687,1767147039387,-500.0,0.00013698,2]
[400137688,1767147039398,-500.0,0.00013698,2]
[400137689,1767147039408,-500.0,0.00013698,2]
[400137690,1767147039418,-500.0,0.00013698,2]
[400137691,1767147039428,-500.0,0.00013698,2]
[400137692,1767147039438,-500.0,0.00013698,2]
[400137693,1767147039448,-266.14271802,0.00013698,2]
[400137694,1767147039460,-504.90264295,0.00013698,2]
[400137695,1767147039469,-500.0,0.00013698,2]
[400137696,1767147039478,-532.44628047,0.00013698,2]
[400137697,1767147039487,-463.96349702,0.00013698,2]
[400137698,1767147039497,-460.24579139,0.00013698,2]
[400137699,1767147039506,-320.11132174,0.00013698,2]
[400137700,1767147039516,-1378.99,0.00013698,2]
[400137701,1767147039525,-1378.99,0.00013698,2]
[400137702,1767147039535,-1378.99,0.00013698,2]
[400137703,1767147039544,-1378.99,0.00013698,2]
[400137704,1767147039553,-1378.99,0.00013698,2]
[400137705,1767147039562,-1378.99,0.00013698,2]
[400137706,1767147039571,-1378.99,0.00013698,2]
[400137707,1767147039581,-1378.99,0.00013698,2]
[400137708,1767147039591,-1378.99,0.00013698,2]
[400137709,1767147039599,-1378.99,0.00013698,2]
[400137710,1767147039609,-1378.99,0.00013698,2]
[400137711,1767147039618,-1378.99,0.00013698,2]
[400137712,1767147039627,-1378.99,0.00013698,2]
[400137713,1767147039636,-1378.99,0.00013698,2]
[400137714,1767147039646,-1378.99,0.00013698,2]
[400137715,1767147039655,-1378.99,0.00013698,2]
[400137716,1767147039665,-1378.99,0.00013698,2]
[400137717,1767147039674,-1378.99,0.00013698,2]
[400137718,1767147039683,-1378.99,0.00013698,2]
[400137719,1767147039692,-1378.99,0.00013698,2]
[400137720,1767147039701,-1378.99,0.00013698,2]
[400137721,1767147039710,-1378.99,0.00013698,2]
[400137722,1767147039720,-1378.99,0.00013698,2]
[400137723,1767147039729,-1379.11148784,0.00013698,2]
[400137724,1767147039738,-2011.81,0.00013698,2]
[400137725,1767147039747,-2011.81,0.00013698,2]
[400137726,1767147039756,-2011.81,0.00013698,2]
[400137727,1767147039765,-2011.81,0.00013698,2]
[400137728,1767147039775,-500.0,0.00013698,2]
[400137729,1767147039783,-2011.81,0.00013698,2]
[400137731,1767147039792,-262.16767073,0.00013698,2]
[400137733,1767147039801,-2011.81,0.00013698,2]
[400137735,1767147039811,-2011.81,0.00013698,2]
[400137736,1767147039820,-2011.81,0.00013698,2]
[400137737,1767147039829,-2011.81,0.00013698,2]
[400137739,1767147039839,-2011.81,0.00013698,2]
[400137740,1767147039848,-2011.81,0.00013698,2]
[400137741,1767147039858,-2011.81,0.00013698,2]
[400137743,1767147039867,-2011.81,0.00013698,2]
[400137745,1767147039876,-2011.81,0.00013698,2]
[400137746,1767147039886,-2011.81,0.00013698,2]
[400137748,1767147039895,-2011.81,0.00013698,2]
[400137749,1767147039905,-2011.81,0.00013698,2]
[400137751,1767147039914,-2011.81,0.00013698,2]
[400137752,1767147039923,-2011.81,0.00013698,2]
[400137754,1767147039933,-2011.81,0.00013698,2]
[400137755,1767147039942,-2011.81,0.00013698,2]
[400137757,1767147039952,-2011.81,0.00013698,2]
[400137759,1767147039961,-15490.5579877,0.00013699,2]
[400137760,1767147039971,-500.0,0.00013699,2]
[400137762,1767147039980,-500.0,0.00013699,2]
[400137763,1767147039990,-500.0,0.00013699,2]
[400137764,1767147039999,-500.0,0.00013699,2]
[400137765,1767147040009,-510.7161434,0.00013699,2]
[400137766,1767147040019,-500.0,0.00013699,2]
[400137767,1767147040028,-500.0,0.00013699,2]
[400137768,1767147040038,-500.0,0.00013699,2]
[400137769,1767147040047,-500.0,0.00013699,2]
[400137770,1767147040057,-500.0,0.00013699,2]
[400137771,1767147040067,-500.0,0.00013699,2]
[400137773,1767147040076,-500.0,0.00013699,2]
[400137774,1767147040085,-500.0,0.00013699,2]
[400137776,1767147040095,-150.35034149,0.00013699,2]
[400137778,1767147040103,-500.0,0.00013699,2]
[400137780,1767147040113,-500.0,0.00013699,2]
[400137782,1767147040122,-500.0,0.00013699,2]
[400137783,1767147040131,-500.0,0.00013699,2]
[400137785,1767147040140,-500.0,0.00013699,2]
[400137787,1767147040150,-501.4710254,0.00013699,2]
[400137789,1767147040159,-303.93264249,0.00013699,2]
[400137791,1767147040168,-500.0,0.00013699,2]
[400137793,1767147040178,-500.0,0.00013699,2]
[400137794,1767147040188,-159.68059141,0.00013699,2]
[400137796,1767147040197,-500.0,0.00013699,2]
[400137798,1767147040207,-500.0,0.00013699,2]
[400137800,1767147040217,-500.0,0.00013699,2]
[400137802,1767147040226,-500.0,0.00013699,2]
[400137803,1767147040235,-500.0,0.00013699,2]
[400137804,1767147040244,-346.46150426,0.00013699,2]
[400137806,1767147040254,-158.39206841,0.00013699,2]
[400137808,1767147040263,-500.0,0.00013699,2]
[400137810,1767147040273,-500.0,0.00013699,2]
[400137811,1767147040282,-500.0,0.00013699,2]
[400137813,1767147040291,-565.555714,0.00013699,2]
[400137815,1767147040300,-500.0,0.00013699,2]
[400137817,1767147040309,-500.0,0.00013699,2]
[400137818,1767147040321,-500.0,0.00013699,2]
[400137820,1767147040331,-500.0,0.00013699,2]
[400137822,1767147040340,-165.03764715,0.00013699,2]
[400137824,1767147040349,-500.0,0.00013699,2]
[400137825,1767147040358,-500.0,0.00013699,2]
[400137827,1767147040369,-500.0,0.00013699,2]
[400137829,1767147040378,-500.0,0.00013699,2]
[400137831,1767147040387,-500.0,0.00013699,2]
[400137833,1767147040400,-500.0,0.00013699,2]
[400137835,1767147040410,-441.0753747,0.00013699,2]
[400137837,1767147040419,-307.59957655,0.00013699,2]
[400137838,1767147040428,-525.82485317,0.00013699,2]
[400137840,1767147040437,-366.01001326,0.00013699,2]
[400137842,1767147040447,-500.35582996,0.00013699,2]
[400137844,1767147040456,-500.0,0.00013699,2]
[400137846,1767147040465,-500.0,0.00013699,2]
[400137848,1767147040475,-500.0,0.00013699,2]
[400137850,1767147040484,-500.0,0.00013699,2]
[400137852,1767147040493,-500.0,0.00013699,2]
[400137853,1767147040503,-500.0,0.00013699,2]
[400137855,1767147040512,-500.0,0.00013699,2]
[400137857,1767147040521,-158.10807846,0.00013699,2]
[400137859,1767147040531,-500.0,0.00013699,2]
[400137860,1767147040540,-500.0,0.00013699,2]
[400137862,1767147040549,-500.0,0.00013699,2]
[400137864,1767147040559,-500.0,0.00013699,2]
[400137866,1767147040568,-500.0,0.00013699,2]
[400137868,1767147040578,-500.0,0.00013699,2]
[400137870,1767147040587,-500.0,0.00013699,2]
[400137871,1767147040596,-344.71637908,0.00013699,2]
[400137873,1767147040611,-500.0,0.00013699,2]
[400137875,1767147040620,-500.0,0.00013699,2]
[400137877,1767147040629,-500.0,0.00013699,2]
[400137879,1767147040638,-500.48900482,0.00013699,2]
[400137881,1767147040647,-500.0,0.00013699,2]
[400137883,1767147040656,-500.0,0.00013699,2]
[400137884,1767147040665,-163.65866633,0.00013699,2]
[400137886,1767147040675,-500.0,0.00013699,2]
[400137888,1767147040684,-178.08460977,0.00013699,2]
[400137890,1767147040694,-500.0,0.00013699,2]
[400137892,1767147040703,-267.53598313,0.00013699,2]
[400137894,1767147040712,-500.0,0.00013699,2]
[400137895,1767147040721,-500.0,0.00013699,2]
[400137897,1767147040730,-500.0,0.00013699,2]
[400137899,1767147040739,-254.02465024,0.00013699,2]
[400137901,1767147040749,-500.0,0.00013699,2]
[400137903,1767147040758,-500.0,0.00013699,2]
[400137904,1767147040767,-500.0,0.00013699,2]
[400137906,1767147040777,-500.0,0.00013699,2]
[400137908,1767147040786,-500.0,0.00013699,2]
[400137910,1767147040796,-500.0,0.00013699,2]
[400137912,1767147040805,-500.0,0.00013699,2]
[400137914,1767147040815,-500.0,0.00013699,2]
[400137916,1767147040825,-500.0,0.00013699,2]
[400137918,1767147040834,-500.0,0.00013699,2]
[400137920,1767147040844,-500.0,0.00013699,2]
[400137922,1767147040853,-500.0,0.00013699,2]
[400137923,1767147040862,-500.0,0.00013699,2]
[400137925,1767147040872,-500.0,0.00013699,2]
[400137927,1767147040882,-500.0,0.00013699,2]
[400137929,1767147040891,-500.0,0.00013699,2]
[400137931,1767147040900,-500.0,0.00013699,2]
[400137933,1767147040910,-500.0,0.00013699,2]
[400137935,1767147040919,-213.3181846,0.00013699,2]
[400137936,1767147040928,-500.0,0.00013699,2]
[400137938,1767147040937,-500.0,0.00013821,2]
[400137940,1767147040946,-1000.0,0.00013821,2]
[400137942,1767147040955,-806.02349709,0.00013821,2]
[400137943,1767147040965,-683.82350415,0.00013821,2]
[400137945,1767147040974,-964.3277621,0.00013821,2]
[400137947,1767147040983,-1000.0,0.00013821,2]
[400137948,1767147040992,-1000.0,0.00013821,2]
[400137950,1767147041001,-1000.0,0.00013821,2]
[400137952,1767147041011,-1000.0,0.00013821,2]
[400137954,1767147041020,-1000.0,0.00013821,2]
[400137956,1767147041030,-1000.0,0.00013821,2]
[400137957,1767147041040,-1000.0,0.00013821,2]
[400137959,1767147041049,-529.84736886,0.00013821,2]
[400137961,1767147041058,-677.12142034,0.00013821,2]
[400137963,1767147041067,-1000.0,0.00013821,2]
[400137965,1767147041077,-1000.0,0.00013821,2]
[400137967,1767147041087,-1000.0,0.00013821,2]
[400137968,1767147041096,-1000.0,0.00013821,2]
[400137970,1767147041105,-1000.0,0.00013821,2]
[400137972,1767147041115,-502.50925578,0.00013821,2]
[400137974,1767147041124,-1000.0,0.00013821,2]
[400137975,1767147041134,-1000.0,0.00013821,2]
[400137977,1767147041146,-499.96763801,0.00013821,2]
[400137979,1767147041155,-1000.0,0.00013821,2]
[400137981,1767147041165,-1000.0,0.00013821,2]
[400137982,1767147041174,-1000.0,0.00013821,2]
[400137984,1767147041183,-1000.0,0.00013821,2]
[400137986,1767147041192,-1000.0,0.00013821,2]
[400137988,1767147041207,-1000.0,0.00013821,2]
[400137990,1767147041216,-1000.0,0.00013821,2]
[400137992,1767147041225,-1000.0,0.00013821,2]
[400137993,1767147041234,-520.05984388,0.00013821,2]
[400137995,1767147041243,-331.59541923,0.00013821,2]
[400137997,1767147041252,-1000.0,0.00013821,2]
[400137999,1767147041261,-1000.0,0.00013821,2]
[400138001,1767147041270,-1000.0,0.00013821,2]
[400138003,1767147041281,-1000.0,0.00013821,2]
[400138004,1767147041289,-1000.0,0.00013821,2]
[400138006,1767147041299,-494.0031485,0.00013821,2]
[400138008,1767147041307,-205.30476225,0.00013821,2]
[400138010,1767147041323,-501.2076363,0.00013821,2]
[400138012,1767147041335,-459.90209075,0.00013821,2]
[400138014,1767147041344,-1000.0,0.00013821,2]
[400138015,1767147041353,-1000.0,0.00013821,2]
[400138017,1767147041362,-1000.0,0.00013821,2]
[400138019,1767147041372,-1000.0,0.00013821,2]
[400138021,1767147041381,-1000.0,0.00013821,2]
[400138023,1767147041393,-1000.0,0.00013821,2]
[400138025,1767147041402,-1000.0,0.00013821,2]
[400138027,1767147041412,-159.94685378,0.00013821,2]
[400138028,1767147041422,-1669.15,0.0001383,2]
[400138030,1767147041431,-2542.67,0.0001393,2]
[400138032,1767147041440,-163.51788502,0.00013973,2]
[400138034,1767147041449,-720.0,0.00013977,2]
[400138036,1767147041458,-500.0,0.00014095,2]
[400138038,1767147041467,-600.0,0.00014221,2]
[400138040,1767147041476,-1000.0,0.00014247,2]
[400138042,1767147041486,-190.10820632,0.00014247,2]
[400138043,1767147041495,-1000.0,0.00014247,2]
[400138045,1767147041504,-1000.0,0.00014247,2]
[400138047,1767147041513,-370.59484017,0.00014247,2]
[400138049,1767147041522,-1001.27910227,0.00014247,2]
[400138051,1767147041531,-1000.0,0.00014247,2]
[400138053,1767147041542,-181.08073641,0.00014247,2]
[400138055,1767147041551,-1000.0,0.00014247,2]
[400138056,1767147041560,-411.90264951,0.00014247,2]
[400138058,1767147041569,-1000.0,0.00014247,2]
[400138060,1767147041579,-609.17214565,0.00014247,2]
[400138062,1767147041588,-1000.0,0.00014247,2]
[400138064,1767147041597,-1000.0,0.00014247,2]
[400138066,1767147041608,-1000.0,0.00014247,2]
[400138068,1767147041617,-500.4478313,0.00014247,2]
[400138069,1767147041626,-1000.0,0.00014247,2]
[400138071,1767147041636,-1000.0,0.00014247,2]
[400138073,1767147041645,-500.48099046,0.00014247,2]
[400138075,1767147041655,-1000.0,0.00014247,2]
[400138077,1767147041664,-1000.0,0.00014247,2]
[400138079,1767147041675,-1000.0,0.00014247,2]
[400138081,1767147041685,-500.68443154,0.00014247,2]
[400138083,1767147041694,-1000.75482131,0.00014247,2]
[400138085,1767147041703,-1000.0,0.00014247,2]
[400138086,1767147041711,-1000.0,0.00014247,2]
[400138088,1767147041720,-1000.0,0.00014247,2]
[400138090,1767147041730,-1000.0,0.00014247,2]
[400138092,1767147041739,-537.58100831,0.00014247,2]
[400138094,1767147041749,-1000.0,0.00014247,2]
[400138095,1767147041758,-1000.0,0.00014247,2]
[400138097,1767147041767,-1000.0,0.00014247,2]
[400138099,1767147041776,-1000.0,0.00014247,2]
[400138101,1767147041786,-439.97362328,0.00014247,2]
[400138103,1767147041795,-1000.0,0.00014247,2]
[400138105,1767147041804,-1000.0,0.00014247,2]
[400138107,1767147041814,-1141.36512345,0.00014247,2]
[400138109,1767147041823,-1000.0,0.00014247,2]
[400138110,1767147041832,-1000.0,0.00014247,2]
[400138112,1767147041842,-1000.0,0.00014247,2]
[400138114,1767147041851,-1000.0,0.00014247,2]
[400138116,1767147041860,-1000.0,0.00014247,2]
[400138118,1767147041869,-1000.0,0.00014247,2]
[400138120,1767147041879,-1000.0,0.00014247,2]
[400138121,1767147041888,-1000.0,0.00014247,2]
[400138123,1767147041898,-1000.0,0.00014247,2]
[400138125,1767147041907,-1000.0,0.00014247,2]
[400138127,1767147041916,-1000.0,0.00014247,2]
[400138129,1767147041926,-1000.0,0.00014247,2]
[400138131,1767147041936,-1000.0,0.00014247,2]
[400138133,1767147041945,-1000.0,0.00014247,2]
[400138134,1767147041954,-842.07137515,0.00014247,2]
[400138136,1767147041966,-1000.0,0.00014247,2]
[400138150,1767147042095,-1000.0,0.00014247,2]
[400138152,1767147042106,-1000.0,0.00014247,2]
[400138154,1767147042116,-1000.0,0.00014247,2]
[400138156,1767147042126,-1000.0,0.00014247,2]
[400138157,1767147042135,-1000.0,0.00014247,2]
[400138159,1767147042144,-1000.0,0.00014247,2]
[400138161,1767147042154,-1000.0,0.00014247,2]
[400138163,1767147042163,-1000.0,0.00014247,2]
[400138165,1767147042172,-1000.0,0.00014247,2]
[400138167,1767147042182,-1000.0,0.00014247,2]
[400138168,1767147042191,-1000.0,0.00014247,2]
[400138170,1767147042200,-1000.0,0.00014247,2]
[400138172,1767147042209,-1000.0,0.00014247,2]
[400138174,1767147042220,-1000.0,0.00014247,2]
[400138176,1767147042229,-750.47529917,0.0001427,2]
[400138178,1767147042239,-151.0,0.000143,2]
[400138180,1767147042249,-951.0928214,0.00014368,2]
[400138182,1767147042259,-1500.0,0.00014368,2]
[400138184,1767147042268,-1500.0,0.00014368,2]
[400138185,1767147042277,-500.0,0.00014368,2]
[400138187,1767147042286,-850.60008768,0.00014368,2]
[400138189,1767147042295,-305.16629448,0.00014368,2]
[400138190,1767147042304,-1500.0,0.00014368,2]
[400138192,1767147042313,-1500.0,0.00014368,2]
[400138194,1767147042329,-1500.0,0.00014368,2]
[400138195,1767147042339,-1149.22262001,0.00014368,2]
[400138197,1767147042349,-1500.0,0.00014368,2]
[400138199,1767147042358,-1500.0,0.00014368,2]
[400138201,1767147042369,-1500.0,0.00014368,2]
[400138203,1767147042378,-1500.0,0.00014368,2]
[400138204,1767147042388,-1500.0,0.00014368,2]
[400138206,1767147042397,-1500.0,0.00014368,2]
[400138208,1767147042407,-849.3977641,0.00014368,2]
[400138210,1767147042417,-1500.0,0.00014368,2]
[400138212,1767147042427,-1500.0,0.00014368,2]
[400138214,1767147042437,-1500.0,0.00014368,2]
[400138215,1767147042447,-600.62609682,0.00014368,2]
[400138217,1767147042457,-1500.0,0.00014368,2]
[400138219,1767147042466,-1500.0,0.00014368,2]
[400138221,1767147042476,-1500.0,0.00014368,2]
[400138223,1767147042486,-492.23358821,0.00014368,2]
[400138225,1767147042496,-1500.0,0.00014368,2]
[400138226,1767147042505,-1500.0,0.00014368,2]
[400138228,1767147042515,-1500.0,0.00014368,2]
[400138230,1767147042524,-1500.0,0.00014368,2]
[400138231,1767147042534,-602.47879957,0.00014368,2]
[400138232,1767147042549,-153.87842377,0.00014368,2]
[400138233,1767147042560,-1500.0,0.00014368,2]
[400138234,1767147042571,-1500.0,0.00014368,2]
[400138235,1767147042589,-1500.0,0.00014368,2]
[400138236,1767147042601,-186.16786472,0.00014368,2]
[400138238,1767147042610,-1500.0,0.00014368,2]
[400138239,1767147042620,-540.10383555,0.00014439,2]
[400138240,1767147042629,-312.96663894,0.00014455,2]
[400138241,1767147042639,-151.0,0.000145,2]
[400138242,1767147042647,-1168.06182939,0.00014612,2]
[400138243,1767147042657,-195.572523,0.00014614,2]
[400138244,1767147042666,-500.0,0.00014642,2]
[400138245,1767147042675,-900.0,0.00014768,2]
[400138246,1767147042685,-1500.0,0.00014795,2]
[400138247,1767147042694,-1500.0,0.00014795,2]
[400138248,1767147042703,-1500.0,0.00014795,2]
[400138249,1767147042713,-1153.38246347,0.00014795,2]
[400138250,1767147042722,-288.21762562,0.00014795,2]
[400138251,1767147042731,-1500.0,0.00014795,2]
[400138252,1767147042741,-1500.0,0.00014795,2]
[400138253,1767147042751,-1500.0,0.00014795,2]
[400138254,1767147042760,-656.47212183,0.00014795,2]
[400138255,1767147042770,-1500.0,0.00014795,2]
[400138256,1767147042779,-614.96936602,0.00014795,2]
[400138257,1767147042788,-1504.00712805,0.00014795,2]
[400138258,1767147042798,-1500.0,0.00014795,2]
[400138259,1767147042807,-1000.66687773,0.00014795,2]
[400138260,1767147042816,-1501.43385257,0.00014795,2]
[400138261,1767147042826,-1500.0,0.00014795,2]
[400138262,1767147042835,-1500.0,0.00014795,2]
[400138263,1767147042845,-1545.39972522,0.00014795,2]
[400138264,1767147042854,-1135.05317618,0.00014795,2]
[400138265,1767147042863,-1500.0,0.00014795,2]
[400138266,1767147042873,-1502.35610833,0.00014795,2]
[400138267,1767147042882,-463.63501052,0.00014795,2]
[400138268,1767147042892,-1500.0,0.00014795,2]
[400138269,1767147042901,-1500.0,0.00014795,2]
[400138270,1767147042910,-1500.0,0.00014795,2]
[400138271,1767147042919,-1500.0,0.00014795,2]
[400138272,1767147042929,-1136.51090941,0.00014795,2]
[400138273,1767147042938,-1500.0,0.00014795,2]
[400138275,1767147042948,-1500.0,0.00014795,2]
[400138276,1767147042958,-1425.73894344,0.00014795,2]
[400138278,1767147042969,-1078.13053233,0.00014795,2]
[400138279,1767147042978,-1500.0,0.00014795,2]
[400138281,1767147042987,-1068.53710429,0.00014795,2]
[400138283,1767147042997,-1500.0,0.00014795,2]
[400138285,1767147043007,-1500.0,0.00014795,2]
[400138287,1767147043016,-501.61073472,0.00014795,2]
[400138289,1767147043026,-1500.0,0.00014795,2]
[400138291,1767147043035,-1500.0,0.00014795,2]
[400138293,1767147043044,-1500.0,0.00014795,2]
[400138295,1767147043054,-1633.65989049,0.00014795,2]
[400138297,1767147043064,-1500.0,0.00014795,2]
[400138299,1767147043074,-1500.0,0.00014795,2]
[400138301,1767147043083,-1500.0,0.00014795,2]
[400138303,1767147043093,-1500.0,0.00014795,2]
[400138305,1767147043103,-1516.82099752,0.00014795,2]
[400138307,1767147043111,-1500.0,0.00014795,2]
[400138309,1767147043120,-1500.0,0.00014795,2]
[400138311,1767147043130,-1500.0,0.00014795,2]
[400138313,1767147043139,-1104.02175741,0.00014795,2]
[400138315,1767147043148,-1500.0,0.00014795,2]
[400138317,1767147043157,-1500.0,0.00014795,2]
[400138319,1767147043166,-1500.0,0.00014795,2]
[400138320,1767147043175,-1500.0,0.00014795,2]
[400138322,1767147043185,-151.0,0.000148,2]
[400138324,1767147043194,-17325.9408774,0.00014806,2]
[400138326,1767147043204,-1030.57947503,0.00014829,2]
[400138328,1767147043214,-587.0,0.00014881,2]
[400138330,1767147043224,-2000.0,0.00014916,2]
[400138333,1767147043234,-2000.0,0.00014916,2]
[400138334,1767147043243,-500.0,0.00014916,2]
[400138336,1767147043253,-153.38490748,0.00014916,2]
[400138338,1767147043263,-531.8224898,0.00014916,2]
[400138340,1767147043273,-2000.0,0.00014916,2]
[400138342,1767147043283,-2000.0,0.00014916,2]
[400138344,1767147043292,-2000.0,0.00014916,2]
[400138346,1767147043303,-2000.0,0.00014916,2]
[400138348,1767147043312,-347.05017991,0.00014916,2]
[400138350,1767147043324,-2000.0,0.00014916,2]
[400138352,1767147043333,-2000.0,0.00014916,2]
[400138354,1767147043342,-2000.0,0.00014916,2]
[400138356,1767147043352,-2000.0,0.00014916,2]
[400138358,1767147043362,-1579.52271368,0.00014916,2]